[Event "44th Chess Olympiad Open 2022"]
[Site "Chennai"]
[Date "2022.08.08"]
[Round "10.9"]
[White "Jones, Gawain C B"]
[Black "Sonis, Francesco"]
[Result "1-0"]
[WhiteElo "2652"]
[BlackElo "2543"]
[Annotator "RC"]
[PlyCount "99"]
[EventDate "2022.??.??"]
[TimeControl "60"]

1. Nf3 {[%emt 0:00:20]} d5 {[%emt 0:00:32]} 2. g3 {[%emt 0:00:11]} Nd7 {
[%emt 0:03:22]} 3. Bg2 {[%emt 0:02:11]} e5 {[%emt 0:00:05]} 4. d3 {[%emt 0:00:
00]} Ngf6 {[%emt 0:00:10]} 5. O-O {[%emt 0:00:07]} Bc5 {[%emt 0:01:38]} 6. Nxe5
{[%emt 0:03:32]} Nxe5 {[%emt 0:02:03]} 7. d4 {[%emt 0:00:04]} Bd6 {[%emt 0:00:
00]} 8. dxe5 {[%emt 0:00:08]} Bxe5 {[%emt 0:00:04]} 9. c4 {[%emt 0:06:12]} dxc4
{[%emt 0:11:37]} 10. Qc2 {[%emt 0:05:47]} O-O {[%emt 0:05:04]} 11. Na3 {
[%emt 0:01:43]} c6 {[%emt 0:05:51]} 12. Nxc4 {[%emt 0:03:41]} Bc7 {[%emt 0:00:
00]} 13. b3 {[%emt 0:01:26]} Be6 {[%emt 0:01:40]} 14. Rd1 {[%emt 0:10:54]} Bd5
{[%emt 0:05:42]} 15. Bb2 {[%emt 0:16:01]} Re8 {[%emt 0:05:22]} 16. Rac1 {
[%emt 0:02:09]} b5 {[%emt 0:07:53]} 17. Ne3 {[%emt 0:04:16]} Bb6 {[%emt 0:00:
00]} 18. Nxd5 {[%emt 0:01:57]} cxd5 {[%emt 0:01:24]} 19. e3 {[%emt 0:01:38]}
Qd6 {[%emt 0:06:30]} 20. Bxf6 {[%emt 0:02:11]} Qxf6 {[%emt 0:00:06]} 21. Rxd5 {
[%emt 0:00:42]} g6 {[%emt 0:02:28]} 22. Rxb5 {[%emt 0:01:17]} Rad8 {[%emt 0:00:
00]} 23. Rd5 {[%emt 0:02:01]} Kg7 {[%emt 0:00:43]} 24. b4 {[%emt 0:06:47]} h5 {
[%emt 0:01:53]} 25. a4 {[%emt 0:02:53]} Rxd5 {[%emt 0:00:45]} 26. Bxd5 {
[%emt 0:00:08]} Re5 {[%emt 0:00:02]} 27. Rd1 {[%emt 0:03:35]} a5 {[%emt 0:00:
00]} 28. b5 {[%emt 0:02:15]} Rf5 {[%emt 0:01:27]} 29. Be4 {[%emt 0:00:33]} Rc5
{[%emt 0:00:10]} 30. Qd3 {[%emt 0:00:30]} Re5 {[%emt 0:02:08]} 31. Bg2 {
[%emt 0:01:32]} h4 {[%emt 0:00:13]} 32. Qd6 {[%emt 0:00:54]} Re6 {[%emt 0:00:
00]} 33. Qf4 {[%emt 0:00:55]} hxg3 {[%emt 0:02:22]} 34. Qxf6+ {[%emt 0:00:10]}
Kxf6 {[%emt 0:00:04]} 35. hxg3 {[%emt 0:00:05]} Ke7 {[%emt 0:00:04]} 36. Bd5 {
[%emt 0:03:03]} Rd6 {[%emt 0:00:36]} 37. Kf1 {[%emt 0:03:32]} g5 {[%emt 0:00:
00]} 38. g4 {[%emt 0:02:11]} f6 {[%emt 0:02:27]} 39. Ke2 {[%emt 0:00:14]} Rd8 {
[%emt 0:00:04]} 40. Kf3 {[%emt 0:01:53]} Kd6 {[%emt 0:05:28]} 41. Be4+ {
[%emt 0:33:40]} Ke5 {[%emt 0:30:36]} 42. Rc1 {[%emt 0:00:10]} Rd7 {[%emt 0:00:
00]} 43. Rc6 {[%emt 0:00:58]} Rd6 {[%emt 0:00:04]} 44. Rc4 {[%emt 0:00:20]} Ke6
{[%emt 0:03:27]} 45. Bb7 {[%emt 0:00:00]} Ke7 {[%emt 0:00:00]} 46. Bc8 {
[%emt 0:00:00]} Rd5 {[%emt 0:00:00]} 47. Rc6 {[%emt 0:00:00]} Rd6 {[%emt 0:00:
00]} 48. Ke4 {[%emt 0:00:00]} Rxc6 {[%emt 0:00:00]} 49. bxc6 {[%emt 0:00:00]}
Bc7 {[%emt 0:00:00]} 50. Kf5 {[%emt 0:00:00]} 1-0

[Event "44th Chess Olympiad Open 2022"]
[Site "Chennai"]
[Date "2022.08.08"]
[Round "10.9"]
[White "Moroni, Luca Jr"]
[Black "McShane, Luke J"]
[Result "0-1"]
[WhiteElo "2584"]
[BlackElo "2649"]
[Annotator "RC"]
[PlyCount "98"]
[EventDate "2022.??.??"]
[TimeControl "60"]

1. d4 {[%emt 0:00:03]} Nf6 {[%emt 0:00:09]} 2. c4 {[%emt 0:00:04]} e6 {[%emt 0:
00:00]} 3. Nc3 {[%emt 0:00:05]} Bb4 {[%emt 0:00:10]} 4. e3 {[%emt 0:00:04]} O-O
{[%emt 0:00:29]} 5. Bd2 {[%emt 0:00:04]} d6 {[%emt 0:06:45]} 6. Bd3 {[%emt 0:
00:00]} e5 {[%emt 0:01:05]} 7. Nge2 {[%emt 0:02:44]} Re8 {[%emt 0:01:19]} 8.
O-O {[%emt 0:02:29]} c6 {[%emt 0:04:42]} 9. Qc2 {[%emt 0:10:05]} Nbd7 {[%emt 0:
00:00]} 10. a3 {[%emt 0:06:19]} Ba5 {[%emt 0:01:17]} 11. b4 {[%emt 0:04:42]}
Bc7 {[%emt 0:00:12]} 12. d5 {[%emt 0:02:51]} Nf8 {[%emt 0:03:54]} 13. Ng3 {
[%emt 0:04:23]} Bd7 {[%emt 0:00:42]} 14. Rac1 {[%emt 0:05:47]} h5 {[%emt 0:00:
00]} 15. Nge4 {[%emt 0:08:42]} N8h7 {[%emt 0:00:18]} 16. Nxf6+ {[%emt 0:08:57]}
Nxf6 {[%emt 0:00:05]} 17. Ne4 {[%emt 0:02:52]} cxd5 {[%emt 0:02:13]} 18. Nxf6+
{[%emt 0:01:50]} Qxf6 {[%emt 0:01:02]} 19. cxd5 {[%emt 0:00:05]} Bb6 {[%emt 0:
00:00]} 20. a4 {[%emt 0:06:10]} e4 {[%emt 0:01:25]} 21. Bxe4 {[%emt 0:08:08]}
Bxa4 {[%emt 0:00:32]} 22. Bh7+ {[%emt 0:02:58]} Kh8 {[%emt 0:01:19]} 23. Qxa4 {
[%emt 0:00:14]} Kxh7 {[%emt 0:00:05]} 24. Bc3 {[%emt 0:01:07]} Qf5 {[%emt 0:00:
00]} 25. Qb5 {[%emt 0:04:45]} Re7 {[%emt 0:14:23]} 26. Bb2 {[%emt 0:01:02]}
Rae8 {[%emt 0:03:03]} 27. Rfd1 {[%emt 0:01:14]} Re4 {[%emt 0:03:15]} 28. h3 {
[%emt 0:00:46]} g5 {[%emt 0:03:09]} 29. Bd4 {[%emt 0:03:55]} Bxd4 {[%emt 0:00:
00]} 30. Rxd4 {[%emt 0:00:06]} Rxd4 {[%emt 0:00:58]} 31. exd4 {[%emt 0:00:24]}
Re7 {[%emt 0:02:13]} 32. Qc4 {[%emt 0:00:28]} a6 {[%emt 0:01:37]} 33. b5 {
[%emt 0:00:57]} axb5 {[%emt 0:00:32]} 34. Qxb5 {[%emt 0:00:02]} Kg7 {[%emt 0:
00:00]} 35. Qc4 {[%emt 0:00:55]} h4 {[%emt 0:02:17]} 36. Ra1 {[%emt 0:03:01]}
Re4 {[%emt 0:03:52]} 37. f3 {[%emt 0:03:11]} Re3 {[%emt 0:04:40]} 38. Kh1 {
[%emt 0:01:00]} Qf4 {[%emt 0:09:57]} 39. Rb1 {[%emt 0:01:20]} g4 {[%emt 0:00:
00]} 40. hxg4 {[%emt 0:03:48]} h3 {[%emt 0:00:53]} 41. Qf1 {[%emt 0:03:04]} Qg3
{[%emt 0:06:55]} 42. g5 {[%emt 0:03:33]} b5 {[%emt 0:08:43]} 43. g6 {[%emt 0:
00:00]} fxg6 {[%emt 0:02:28]} 44. Ra1 {[%emt 0:04:36]} b4 {[%emt 0:06:14]} 45.
gxh3 {[%emt 0:02:12]} Rxf3 {[%emt 0:06:55]} 46. Qg2 {[%emt 0:00:02]} Qxh3+ {
[%emt 0:00:24]} 47. Qxh3 {[%emt 0:00:05]} Rxh3+ {[%emt 0:00:04]} 48. Kg2 {
[%emt 0:00:07]} Ra3 {[%emt 0:00:19]} 49. Rc1 {[%emt 0:01:30]} Ra7 {[%emt 0:00:
00]} 0-1

[Event "44th Chess Olympiad Open 2022"]
[Site "Chennai"]
[Date "2022.08.08"]
[Round "10.9"]
[White "Brunello, Sabino"]
[Black "Haria, Ravi"]
[Result "1/2-1/2"]
[WhiteElo "2520"]
[BlackElo "2505"]
[Annotator "RC"]
[PlyCount "70"]
[EventDate "2022.??.??"]
[TimeControl "60"]

1. d4 {[%emt 0:00:07]} d5 {[%emt 0:00:10]} 2. c4 {[%emt 0:00:25]} e6 {[%emt 0:
00:00]} 3. Nf3 {[%emt 0:03:18]} Nf6 {[%emt 0:00:17]} 4. Nc3 {[%emt 0:00:04]}
Bb4 {[%emt 0:00:14]} 5. Qa4+ {[%emt 0:00:52]} Nc6 {[%emt 0:00:08]} 6. e3 {
[%emt 0:00:05]} O-O {[%emt 0:00:23]} 7. Bd2 {[%emt 0:00:34]} Re8 {[%emt 0:00:
00]} 8. a3 {[%emt 0:00:12]} Bf8 {[%emt 0:01:42]} 9. Qc2 {[%emt 0:04:55]} e5 {
[%emt 0:09:57]} 10. dxe5 {[%emt 0:02:59]} Nxe5 {[%emt 0:00:16]} 11. cxd5 {
[%emt 0:00:08]} Nxd5 {[%emt 0:02:15]} 12. Nxe5 {[%emt 0:00:18]} Rxe5 {[%emt 0:
00:00]} 13. e4 {[%emt 0:00:08]} Nxc3 {[%emt 0:09:16]} 14. Bxc3 {[%emt 0:00:11]}
Re8 {[%emt 0:01:51]} 15. Bd3 {[%emt 0:07:09]} Be6 {[%emt 0:04:54]} 16. O-O {
[%emt 0:06:37]} c6 {[%emt 0:02:16]} 17. f4 {[%emt 0:09:36]} Bb3 {[%emt 0:16:58]
} 18. Qe2 {[%emt 0:01:54]} Qd7 {[%emt 0:02:12]} 19. Rf3 {[%emt 0:09:50]} Rad8 {
[%emt 0:05:33]} 20. Kh1 {[%emt 0:21:18]} f6 {[%emt 0:14:38]} 21. Raf1 {[%emt 0:
00:00]} Qf7 {[%emt 0:01:26]} 22. Re1 {[%emt 0:03:54]} Rd7 {[%emt 0:01:43]} 23.
Rh3 {[%emt 0:03:23]} Red8 {[%emt 0:05:01]} 24. g4 {[%emt 0:00:14]} g6 {[%emt 0:
00:00]} 25. e5 {[%emt 0:05:17]} Bd5+ {[%emt 0:02:22]} 26. Be4 {[%emt 0:04:13]}
fxe5 {[%emt 0:05:56]} 27. fxe5 {[%emt 0:00:28]} Bg7 {[%emt 0:00:44]} 28. Bxd5 {
[%emt 0:01:31]} Qxd5+ {[%emt 0:00:12]} 29. Qe4 {[%emt 0:00:20]} Qe6 {[%emt 0:
00:00]} 30. Rf3 {[%emt 0:00:40]} Rd1 {[%emt 0:01:04]} 31. Rxd1 {[%emt 0:00:20]}
Rxd1+ {[%emt 0:00:05]} 32. Kg2 {[%emt 0:00:02]} Rd5 {[%emt 0:02:27]} 33. h3 {
[%emt 0:00:19]} Rd8 {[%emt 0:01:09]} 34. Kg3 {[%emt 0:01:18]} Re8 {[%emt 0:00:
00]} 35. Re3 {[%emt 0:00:32]} Rd8 {[%emt 0:01:06]} 1/2-1/2

[Event "44th Chess Olympiad Open 2022"]
[Site "Chennai"]
[Date "2022.08.08"]
[Round "10.10"]
[White "Moussard, Jules"]
[Black "Stremavicius, Titas"]
[Result "1-0"]
[WhiteElo "2672"]
[BlackElo "2532"]
[Annotator "RC"]
[PlyCount "77"]
[EventDate "2022.??.??"]
[TimeControl "60"]

1. e4 {[%emt 0:00:02]} c5 {[%emt 0:00:09]} 2. Nf3 {[%emt 0:00:06]} d6 {[%emt 0:
00:00]} 3. d4 {[%emt 0:00:15]} cxd4 {[%emt 0:00:06]} 4. Nxd4 {[%emt 0:00:04]}
Nf6 {[%emt 0:00:09]} 5. Nc3 {[%emt 0:00:05]} Nc6 {[%emt 0:00:08]} 6. Bg5 {
[%emt 0:00:17]} e6 {[%emt 0:00:10]} 7. Qd2 {[%emt 0:03:00]} a6 {[%emt 0:00:08]}
8. O-O-O {[%emt 0:01:00]} Bd7 {[%emt 0:00:11]} 9. Kb1 {[%emt 0:02:34]} Be7 {
[%emt 0:07:54]} 10. Nxc6 {[%emt 0:02:51]} Bxc6 {[%emt 0:00:20]} 11. f3 {
[%emt 0:00:37]} Qc7 {[%emt 0:02:34]} 12. h4 {[%emt 0:08:14]} h6 {[%emt 0:00:43]
} 13. Be3 {[%emt 0:04:45]} h5 {[%emt 0:01:13]} 14. Bg5 {[%emt 0:08:53]} b5 {
[%emt 0:01:54]} 15. Ne2 {[%emt 0:06:21]} Bd7 {[%emt 0:00:57]} 16. Nf4 {[%emt 0:
00:00]} Rb8 {[%emt 0:09:24]} 17. Rc1 {[%emt 0:03:45]} e5 {[%emt 0:11:28]} 18.
Bxf6 {[%emt 0:00:31]} Bxf6 {[%emt 0:00:07]} 19. Nd5 {[%emt 0:00:05]} Qd8 {
[%emt 0:00:07]} 20. g3 {[%emt 0:04:56]} Be6 {[%emt 0:01:56]} 21. c4 {[%emt 0:
00:00]} O-O {[%emt 0:01:48]} 22. cxb5 {[%emt 0:02:10]} axb5 {[%emt 0:00:48]}
23. Rc6 {[%emt 0:04:15]} Be7 {[%emt 0:13:34]} 24. Be2 {[%emt 0:02:33]} f5 {
[%emt 0:00:10]} 25. Rd1 {[%emt 0:06:15]} f4 {[%emt 0:05:36]} 26. gxf4 {[%emt 0:
00:00]} exf4 {[%emt 0:03:31]} 27. Nxe7+ {[%emt 0:00:58]} Qxe7 {[%emt 0:00:08]}
28. Qxd6 {[%emt 0:00:05]} Qxd6 {[%emt 0:00:07]} 29. Rdxd6 {[%emt 0:00:06]} Bf7
{[%emt 0:00:21]} 30. Rc7 {[%emt 0:02:15]} Be8 {[%emt 0:05:22]} 31. Bd1 {
[%emt 0:02:41]} Rf6 {[%emt 0:00:23]} 32. Bb3+ {[%emt 0:03:54]} Kf8 {[%emt 0:00:
00]} 33. Rxf6+ {[%emt 0:00:21]} gxf6 {[%emt 0:00:03]} 34. a3 {[%emt 0:00:54]}
Rd8 {[%emt 0:01:27]} 35. Kc2 {[%emt 0:03:10]} Rd6 {[%emt 0:01:24]} 36. Kc3 {
[%emt 0:00:51]} Bd7 {[%emt 0:00:06]} 37. Rc5 {[%emt 0:02:14]} Kg7 {[%emt 0:00:
00]} 38. Rxh5 {[%emt 0:01:21]} Rc6+ {[%emt 0:01:42]} 39. Kd4 {[%emt 0:01:23]}
1-0

[Event "44th Chess Olympiad Open 2022"]
[Site "Chennai"]
[Date "2022.08.08"]
[Round "10.10"]
[White "Lagarde, Maxime"]
[Black "Pultinevicius, Paulius"]
[Result "0-1"]
[WhiteElo "2631"]
[BlackElo "2539"]
[Annotator "RC"]
[PlyCount "92"]
[EventDate "2022.??.??"]
[TimeControl "60"]

1. e4 {[%emt 0:00:02]} c6 {[%emt 0:00:05]} 2. d4 {[%emt 0:00:04]} d5 {[%emt 0:
00:00]} 3. e5 {[%emt 0:00:02]} Bf5 {[%emt 0:00:05]} 4. h4 {[%emt 0:00:10]} h5 {
[%emt 0:00:06]} 5. c4 {[%emt 0:00:27]} e6 {[%emt 0:00:06]} 6. Nc3 {[%emt 0:00:
00]} Ne7 {[%emt 0:05:36]} 7. Bg5 {[%emt 0:12:56]} Qb6 {[%emt 0:04:21]} 8. Rc1 {
[%emt 0:00:16]} dxc4 {[%emt 0:15:56]} 9. Bxc4 {[%emt 0:00:49]} Qxb2 {[%emt 0:
00:00]} 10. Nge2 {[%emt 0:07:02]} Nd7 {[%emt 0:18:52]} 11. O-O {[%emt 0:08:26]}
Rd8 {[%emt 0:32:47]} 12. Ng3 {[%emt 0:30:48]} Nxe5 {[%emt 0:00:29]} 13. Bb3 {
[%emt 0:00:52]} Bg6 {[%emt 0:02:23]} 14. f4 {[%emt 0:08:19]} Ng4 {[%emt 0:00:
00]} 15. Qe1 {[%emt 0:03:33]} Bf5 {[%emt 0:09:40]} 16. d5 {[%emt 0:06:09]} f6 {
[%emt 0:01:49]} 17. Nxf5 {[%emt 0:04:22]} exf5 {[%emt 0:00:17]} 18. Qe6 {
[%emt 0:02:03]} Qd2 {[%emt 0:01:08]} 19. dxc6 {[%emt 0:04:14]} Qe3+ {[%emt 0:
00:00]} 20. Qxe3 {[%emt 0:00:52]} Nxe3 {[%emt 0:00:05]} 21. cxb7 {[%emt 0:00:
00]} Nxf1 {[%emt 0:00:56]} 22. Nb5 {[%emt 0:00:08]} Ng3 {[%emt 0:02:12]} 23.
Be6 {[%emt 0:04:45]} Rb8 {[%emt 0:00:04]} 24. Nd6+ {[%emt 0:01:28]} Kd8 {
[%emt 0:00:04]} 25. Nf7+ {[%emt 0:00:15]} Ke8 {[%emt 0:00:05]} 26. Nd6+ {
[%emt 0:02:59]} Kd8 {[%emt 0:00:04]} 27. Nf7+ {[%emt 0:00:41]} Ke8 {[%emt 0:00:
00]} 28. Rd1 {[%emt 0:00:35]} Nc6 {[%emt 0:02:39]} 29. Nxh8 {[%emt 0:00:30]}
Rxb7 {[%emt 0:00:06]} 30. Kh2 {[%emt 0:00:24]} Ne2 {[%emt 0:00:35]} 31. Bxf5 {
[%emt 0:00:46]} fxg5 {[%emt 0:00:08]} 32. fxg5 {[%emt 0:00:29]} Ne5 {[%emt 0:
00:00]} 33. Ng6 {[%emt 0:00:06]} Ng4+ {[%emt 0:00:35]} 34. Bxg4 {[%emt 0:00:29]
} hxg4 {[%emt 0:00:05]} 35. Rd2 {[%emt 0:00:13]} Nc3 {[%emt 0:00:12]} 36. Rd4 {
[%emt 0:01:17]} Rb4 {[%emt 0:00:22]} 37. Rd3 {[%emt 0:00:13]} Ne4 {[%emt 0:00:
00]} 38. a3 {[%emt 0:00:25]} Ra4 {[%emt 0:00:14]} 39. Nxf8 {[%emt 0:00:36]} g3+
{[%emt 0:00:07]} 40. Kg1 {[%emt 0:00:03]} Kxf8 {[%emt 0:00:04]} 41. Kf1 {
[%emt 0:08:44]} Kf7 {[%emt 0:00:04]} 42. h5 {[%emt 0:01:09]} Nxg5 {[%emt 0:00:
00]} 43. Rxg3 {[%emt 0:00:06]} Kf6 {[%emt 0:00:26]} 44. Rd3 {[%emt 0:02:21]}
Ne4 {[%emt 0:00:28]} 45. Ke2 {[%emt 0:00:41]} Kg5 {[%emt 0:00:22]} 46. Rd5+ {
[%emt 0:01:43]} Kg4 {[%emt 0:01:39]} 0-1

[Event "44th Chess Olympiad Open 2022"]
[Site "Chennai"]
[Date "2022.08.08"]
[Round "10.10"]
[White "Kazakouski, Valery"]
[Black "Maurizzi, Marc`Andria"]
[Result "1-0"]
[WhiteElo "2528"]
[BlackElo "2506"]
[Annotator "RC"]
[PlyCount "89"]
[EventDate "2022.??.??"]
[TimeControl "60"]

1. d4 {[%emt 0:00:04]} Nf6 {[%emt 0:00:17]} 2. c4 {[%emt 0:00:08]} g6 {[%emt 0:
00:00]} 3. Nc3 {[%emt 0:01:10]} Bg7 {[%emt 0:00:39]} 4. e4 {[%emt 0:00:39]} O-O
{[%emt 0:00:28]} 5. h3 {[%emt 0:00:20]} d6 {[%emt 0:01:09]} 6. Be3 {[%emt 0:00:
00]} c5 {[%emt 0:02:25]} 7. d5 {[%emt 0:00:27]} e6 {[%emt 0:01:17]} 8. Bd3 {
[%emt 0:00:17]} exd5 {[%emt 0:10:27]} 9. exd5 {[%emt 0:00:23]} Re8 {[%emt 0:00:
00]} 10. Nf3 {[%emt 0:00:24]} Bh6 {[%emt 0:07:46]} 11. O-O {[%emt 0:00:43]}
Bxe3 {[%emt 0:00:02]} 12. fxe3 {[%emt 0:00:13]} Nbd7 {[%emt 0:00:01]} 13. Qd2 {
[%emt 0:05:49]} Nh5 {[%emt 0:06:13]} 14. g4 {[%emt 0:14:56]} Ng7 {[%emt 0:00:
00]} 15. e4 {[%emt 0:14:39]} Ne5 {[%emt 0:05:34]} 16. Qh6 {[%emt 0:08:20]} f6 {
[%emt 0:01:10]} 17. Nxe5 {[%emt 0:03:31]} Rxe5 {[%emt 0:00:03]} 18. Rf2 {
[%emt 0:01:40]} Qe7 {[%emt 0:03:34]} 19. Raf1 {[%emt 0:01:17]} Ne8 {[%emt 0:00:
00]} 20. Nb1 {[%emt 0:02:23]} Qg7 {[%emt 0:04:50]} 21. Qf4 {[%emt 0:05:22]} h5
{[%emt 0:02:24]} 22. Rg2 {[%emt 0:01:24]} Bd7 {[%emt 0:06:57]} 23. Nd2 {
[%emt 0:02:44]} g5 {[%emt 0:01:53]} 24. Qf2 {[%emt 0:01:55]} h4 {[%emt 0:01:22]
} 25. Nf3 {[%emt 0:06:34]} Re7 {[%emt 0:00:01]} 26. e5 {[%emt 0:04:23]} dxe5 {
[%emt 0:01:21]} 27. Qxc5 {[%emt 0:00:23]} b6 {[%emt 0:04:17]} 28. Qa3 {[%emt 0:
00:00]} e4 {[%emt 0:06:49]} 29. Re1 {[%emt 0:01:11]} e3 {[%emt 0:13:24]} 30.
Nd4 {[%emt 0:04:31]} Rc8 {[%emt 0:01:38]} 31. Rge2 {[%emt 0:05:44]} f5 {
[%emt 0:01:07]} 32. Nxf5 {[%emt 0:00:47]} Bxf5 {[%emt 0:00:09]} 33. Bxf5 {
[%emt 0:00:08]} Rxc4 {[%emt 0:00:05]} 34. d6 {[%emt 0:02:01]} Qe5 {[%emt 0:00:
00]} 35. Rxe3 {[%emt 0:00:43]} Qg3+ {[%emt 0:00:48]} 36. Rxg3 {[%emt 0:01:25]}
Rxe1+ {[%emt 0:00:01]} 37. Kf2 {[%emt 0:02:10]} hxg3+ {[%emt 0:00:04]} 38. Kxe1
{[%emt 0:00:17]} Rc1+ {[%emt 0:00:04]} 39. Kd2 {[%emt 0:00:10]} g2 {[%emt 0:00:
00]} 40. Qe3 {[%emt 0:00:42]} g1=Q {[%emt 0:00:30]} 41. Qxe8+ {[%emt 0:30:07]}
Kg7 {[%emt 0:30:01]} 42. Qe7+ {[%emt 0:00:08]} Kg8 {[%emt 0:00:07]} 43. Be6+ {
[%emt 0:00:05]} Kh8 {[%emt 0:00:03]} 44. Qf8+ {[%emt 0:00:07]} Kh7 {[%emt 0:00:
00]} 45. Bf5# {[%emt 0:00:39]} 1-0

[Event "44th Chess Olympiad Open 2022"]
[Site "Chennai"]
[Date "2022.08.08"]
[Round "10.10"]
[White "Juksta, Karolis"]
[Black "Fressinet, Laurent"]
[Result "0-1"]
[WhiteElo "2412"]
[BlackElo "2631"]
[Annotator "RC"]
[PlyCount "86"]
[EventDate "2022.??.??"]
[TimeControl "60"]

1. d4 {[%emt 0:00:03]} Nf6 {[%emt 0:00:16]} 2. c4 {[%emt 0:00:06]} e6 {[%emt 0:
00:00]} 3. Nc3 {[%emt 0:00:05]} Bb4 {[%emt 0:00:04]} 4. a3 {[%emt 0:00:06]}
Bxc3+ {[%emt 0:00:13]} 5. bxc3 {[%emt 0:00:06]} c5 {[%emt 0:00:18]} 6. f3 {
[%emt 0:00:06]} d5 {[%emt 0:00:24]} 7. cxd5 {[%emt 0:00:28]} Nxd5 {[%emt 0:00:
00]} 8. dxc5 {[%emt 0:00:26]} Qa5 {[%emt 0:00:26]} 9. e4 {[%emt 0:00:28]} Ne7 {
[%emt 0:00:06]} 10. Be3 {[%emt 0:00:59]} O-O {[%emt 0:00:15]} 11. Qb3 {[%emt 0:
00:00]} Qc7 {[%emt 0:00:33]} 12. Nh3 {[%emt 0:16:34]} Nec6 {[%emt 0:12:04]} 13.
Be2 {[%emt 0:09:09]} Na5 {[%emt 0:03:40]} 14. Qb2 {[%emt 0:03:07]} e5 {[%emt 0:
00:00]} 15. Nf2 {[%emt 0:00:45]} Be6 {[%emt 0:01:56]} 16. O-O {[%emt 0:03:54]}
Nd7 {[%emt 0:02:47]} 17. Qb4 {[%emt 0:19:58]} Nb3 {[%emt 0:06:44]} 18. Rab1 {
[%emt 0:01:01]} Nbxc5 {[%emt 0:04:06]} 19. Nd3 {[%emt 0:05:51]} b6 {[%emt 0:00:
00]} 20. Nxc5 {[%emt 0:01:04]} Nxc5 {[%emt 0:00:10]} 21. Bxc5 {[%emt 0:10:43]}
bxc5 {[%emt 0:02:11]} 22. Qb7 {[%emt 0:03:14]} Qa5 {[%emt 0:03:45]} 23. Rfc1 {
[%emt 0:00:30]} c4 {[%emt 0:01:54]} 24. a4 {[%emt 0:05:01]} h6 {[%emt 0:13:28]}
25. Kf1 {[%emt 0:01:41]} Rad8 {[%emt 0:03:23]} 26. Qb4 {[%emt 0:04:31]} Qc7 {
[%emt 0:01:21]} 27. Qb7 {[%emt 0:02:18]} Qc5 {[%emt 0:02:23]} 28. Qb5 {[%emt 0:
00:00]} Qe3 {[%emt 0:02:03]} 29. Rc2 {[%emt 0:01:30]} Qf4 {[%emt 0:03:35]} 30.
Kg1 {[%emt 0:00:13]} Rc8 {[%emt 0:05:08]} 31. Rd1 {[%emt 0:03:03]} h5 {[%emt 0:
00:00]} 32. Qb1 {[%emt 0:01:01]} Rfd8 {[%emt 0:01:48]} 33. Rxd8+ {[%emt 0:00:
00]} Rxd8 {[%emt 0:00:06]} 34. Qe1 {[%emt 0:00:46]} h4 {[%emt 0:03:45]} 35. Qf2
{[%emt 0:00:54]} Rd2 {[%emt 0:04:38]} 36. Rxd2 {[%emt 0:00:01]} Qxd2 {[%emt 0:
00:00]} 37. Bf1 {[%emt 0:00:06]} Qxc3 {[%emt 0:01:31]} 38. Qxa7 {[%emt 0:00:04]
} Qd2 {[%emt 0:02:44]} 39. Qb8+ {[%emt 0:01:47]} Kh7 {[%emt 0:00:02]} 40. Qb1 {
[%emt 0:00:29]} c3 {[%emt 0:02:27]} 41. Bd3 {[%emt 0:05:29]} h3 {[%emt 0:02:44]
} 42. Qc2 {[%emt 0:00:36]} Qe1+ {[%emt 0:00:30]} 43. Bf1 {[%emt 0:00:34]} Bc4 {
[%emt 0:00:16]} 0-1

[Event "44th Chess Olympiad Open 2022"]
[Site "Chennai"]
[Date "2022.08.08"]
[Round "10.11"]
[White "Carlsen, Magnus"]
[Black "Schitco, Ivan"]
[Result "1/2-1/2"]
[WhiteElo "2864"]
[BlackElo "2490"]
[Annotator "TA"]
[PlyCount "90"]
[EventDate "2022.??.??"]
[TimeControl "60"]

{[%evp 9,90,0,-9,-10,0,0,0,0,14,0,10,0,8,-6,-13,-16,2,0,9,0,0,-5,0,0,0,0,0,0,0,
0,0,-50,0,-27,0,-7,-4,-14,14,14,14,18,20,12,29,29,29,15,15,15,14,0,19,4,5,5,5,
0,0,0,4,10,5,0,0,0,0,0,0,0,0,0,0,0,0,0,0,0,0,0,0,0,0]} 1. Nf3 {[%emt 0:00:07]}
Nf6 {[%emt 0:00:33]} 2. g3 {[%emt 0:00:09]} d5 {[%emt 0:00:57]} 3. Bg2 {
[%emt 0:00:11]} e6 {[%emt 0:00:25]} 4. O-O {[%emt 0:02:02]} Be7 {[%emt 0:00:23]
} 5. d3 {[%emt 0:00:31]} O-O {[%emt 0:00:55]} 6. a4 {[%emt 0:01:38] A07: Réti
Opening: New York and Capablanca Systems.} c5 {[%emt 0:02:59]} 7. e4 {[%emt 0:
00:00]} Nc6 {[%emt 0:04:51]} 8. Bf4 {[%emt 0:01:52] [#]} h6 $146 {[%emt 0:00:
00]} ({Predecessor:} 8... dxe4 9. dxe4 Qxd1 10. Rxd1 Nxe4 11. Ne5 Nxe5 12. Bxe5
Nd6 13. Na3 Nf5 14. Nc4 f6 {1-0 (55) Niemann,H (2688)-Andreikin,D (2729) Chess.
com INT 2022}) 9. Qe2 {[%emt 0:04:50]} b6 {[%emt 0:04:36]} 10. Re1 {[%emt 0:00:
00]} (10. Ne5 {is interesting.} Nd4 11. Qd1 dxe4 12. c3) 10... Bb7 {[%emt 0:00:
00]} 11. e5 {[%emt 0:02:41]} Nh7 {[%emt 0:05:15]} 12. h4 {[%emt 0:01:16]} Rc8 {
[%emt 0:01:35]} 13. c3 {[%emt 0:01:05]} d4 {[%emt 0:08:45]} 14. c4 {[%emt 0:00:
00]} Kh8 {[%emt 0:13:43]} 15. Bc1 {[%emt 0:10:20]} Nb4 {[%emt 0:02:59]} 16. Na3
{[%emt 0:00:44][%cal Yb1a3,Ya3c2,Yc2e1,Ye1g2,Yg2f4]} Qd7 {[%emt 0:00:00]} 17.
Bd2 {[%emt 0:03:49]} Nc6 {[%emt 0:02:15]} (17... Qxa4 $2 18. Nb5 Qb3 19. Nfxd4
$1 cxd4 20. Bxb4 (20. Bxb7 Nxd3 21. Nxd4 Qxc4 $16) (20. Nxd4 Qxd3 21. Bxb4 Qxe2
$11) 20... Qxb4 21. Bxb7 $18) 18. Nh2 {[%emt 0:06:08]} Rce8 {[%emt 0:00:00]}
19. Nc2 {[%emt 0:00:37]} a5 {[%emt 0:00:34]} 20. Ng4 {[%emt 0:05:39]} ({
Better is} 20. Na3 $11) 20... Bd8 {[%emt 0:01:15]} (20... f6 $1 $15) 21. Rf1 {
[%emt 0:03:05]} Ne7 {[%emt 0:01:29]} 22. Bxb7 {[%emt 0:00:55]} Qxb7 {[%emt 0:
00:00]} 23. Ne1 {[%emt 0:00:11]} (23. Na3 {is more complex.} Bc7 24. Nb5 Bb8
25. f4) 23... Nc6 {[%emt 0:07:16]} 24. Ng2 {[%emt 0:03:42]} h5 {[%emt 0:07:09]}
25. Nh2 {[%emt 0:01:09][%cal Yg4h2,Yh2f3,Yf3g5]} Bc7 {[%emt 0:01:08]} 26. Nf3 {
[%emt 0:06:49]} Bb8 {[%emt 0:02:24]} 27. Nf4 {[%emt 0:02:29]} g6 {[%emt 0:00:
38]} 28. Kh2 {[%emt 0:00:58]} Kg7 {[%emt 0:01:04] The position is equal.} 29.
Rae1 {[%emt 0:02:34]} f6 {[%emt 0:02:48]} 30. exf6+ {[%emt 0:01:00]} Nxf6 {
[%emt 0:00:35]} 31. Ng5 {[%emt 0:02:21]} ({Stronger than} 31. Nxe6+ {[#]} Rxe6
$1 32. Qxe6 Ng4+ 33. Kg1 (33. Kg2 $2 Nce5 $19) 33... Rxf3 $17) 31... Bxf4 {
[%emt 0:00:42]} 32. Bxf4 {[%emt 0:00:07]} e5 {[%emt 0:00:00]} 33. Bd2 {[%emt 0:
00:08]} Qd7 {[%emt 0:02:25]} 34. f3 {[%emt 0:00:53]} Nd8 {[%emt 0:00:58][%cal
Yc6d8,Yd8b7,Yb7d6]} 35. b3 {[%emt 0:01:19]} Nb7 {[%emt 0:00:23]} 36. Ne4 {
[%emt 0:03:27]} Nxe4 {[%emt 0:00:55]} 37. Qxe4 {[%emt 0:02:24]} Nd6 {[%emt 0:
00:05]} 38. Qd5 {[%emt 0:00:21]} Rf5 {[%emt 0:00:00][%cal Ye5e4] And now ...
e4! would win.} 39. g4 {[%emt 0:00:56]} hxg4 {[%emt 0:00:14]} 40. fxg4 {
[%emt 0:00:06]} Rxf1 {[%emt 0:00:21]} 41. Rxf1 {[%emt 0:30:07]} Qxg4 {[%emt 0:
04:13]} 42. Bg5 {[%emt 0:00:00]} ({Avoid the trap} 42. Qxd6 $2 Qxh4+ 43. Kg2
Qg4+ 44. Kf2 Rf8+ 45. Ke1 Qg3+ 46. Ke2 Qg2+ 47. Kd1 Rxf1+ $19) 42... Qe2+ {
[%emt 0:05:12]} 43. Kg1 {[%emt 0:00:00]} Qg4+ {[%emt 0:00:00]} 44. Kh2 $1 {
[%emt 0:00:00]} Qe2+ {[%emt 0:00:35]} 45. Kg1 {[%emt 0:00:00]} Qg4+ {[%emt 0:
00:03] An even fight not without its subleties. Weighted Error Value: White=0.
06 (flawless) /Black=0.05 (flawless)} 1/2-1/2